bitfinex/quotes_ETHUSD_20251120
["timestamp","ask_amount","ask_price","bid_price","bid_amount"]
[1763660901131,0.3497,2825.8,2824.3,0.405504]
[1763660901132,0.09465183,2824.4,2824.3,0.405504]
[1763660901338,0.09465183,2824.6,2824.2,0.4985]
[1763660901634,1.66219664,2825.7,2823.7,0.1846]
[1763660901837,1.66219664,2825.7,2823.8,0.6831]
[1763660901838,0.09465183,2823.9,2823.8,0.6831]
[1763660902137,0.09465183,2824.0,2823.8,0.6831]
[1763660902303,0.09465183,2824.2,2823.8,0.1846]
[1763660902498,0.09465183,2824.1,2823.8,0.1846]
[1763660902703,0.3497,2825.5,2823.3,0.1846]
[1763660902900,17.8846909,2825.9,2823.4,0.70227297]
[1763660902901,0.09465183,2823.6,2823.4,0.70227297]
[1763660903122,0.3497,2825.4,2823.4,0.70227297]
[1763660903325,0.3497,2825.3,2823.6,0.405504]
[1763660903636,0.3497,2825.3,2823.7,0.405504]
[1763660903637,0.09465183,2824.1,2823.7,0.405504]
[1763660903798,0.09465183,2824.1,2823.6,0.4985]
[1763660903998,0.3497,2825.3,2823.4,0.70227297]
[1763660903999,0.09465183,2823.7,2823.4,0.70227297]
[1763660904430,0.09465183,2823.7,2823.4,0.4985]
[1763660904636,0.09465183,2823.4,2823.3,0.1846]
[1763660905000,0.09465183,2823.1,2822.9,0.1846]
[1763660905541,0.3497,2824.2,2823.0,0.4985]
[1763660905697,0.09465183,2823.3,2823.0,0.4985]
[1763660905902,0.3497,2824.7,2823.0,0.4985]
[1763660906125,0.3497,2824.7,2823.1,0.405504]
[1763660906126,0.09465183,2823.5,2823.1,0.405504]
[1763660906318,0.3497,2824.7,2823.1,0.405504]
[1763660906567,0.09465183,2823.7,2823.2,0.4985]
[1763660906762,0.3497,2824.2,2822.9,0.1846]
[1763660906922,0.09465183,2823.0,2822.9,0.1846]
[1763660907122,0.09465183,2823.4,2823.0,1.31249664]
[1763660907338,0.3494,2824.7,2823.0,1.31249664]
[1763660907538,0.3494,2824.7,2823.2,0.405504]
[1763660907944,0.09465183,2823.8,2823.4,0.405504]
[1763660908458,0.09465183,2823.8,2823.5,0.4985]
[1763660908857,0.09465183,2823.8,2823.4,0.405504]
[1763660909022,0.09465183,2823.5,2823.4,0.904004]
[1763660910168,3.94512283,2825.2,2823.1,0.405504]
[1763660910371,0.09465183,2823.2,2823.0,0.4681]
[1763660910552,0.1014,2825.0,2823.1,0.405504]
[1763660910730,0.1014,2825.0,2823.2,0.4681]
[1763660910731,0.09465183,2823.6,2823.2,0.4681]
[1763660910931,0.09465183,2823.6,2823.1,1.31249664]
[1763660910932,0.09465183,2823.3,2823.1,1.78059664]
[1763660911133,0.1014,2825.0,2823.3,0.405504]
[1763660911471,0.09465183,2825.1,2824.2,1.31249664]
[1763660911674,0.4961,2825.9,2824.3,0.405504]
[1763660911972,0.4961,2825.9,2824.3,0.185]
[1763660912176,0.09465183,2824.6,2824.4,0.4681]
[1763660912477,6.36602973,2827.0,2825.8,0.185]
[1763660912478,0.1014,2827.0,2825.8,0.185]
[1763660912645,0.09465183,2826.1,2825.8,0.185]
[1763660912970,0.09465183,2826.9,2825.9,0.873604]
[1763660913267,0.09465183,2826.3,2825.9,0.873604]
[1763660913476,0.09465183,2826.3,2825.9,0.4681]
[1763660913649,0.09465183,2826.0,2825.9,0.873604]
[1763660913845,0.09465183,2826.0,2825.9,0.405504]
[1763660914436,0.09465183,2825.7,2825.4,0.405504]
[1763660914758,0.09465183,2825.7,2825.3,0.185]
[1763660914958,0.1014,2826.9,2825.0,0.873604]
[1763660914959,0.09465183,2825.4,2825.0,0.4681]
[1763660915446,0.09465183,2825.4,2825.1,0.405504]
[1763660915774,0.09465183,2825.1,2825.0,0.4681]
[1763660915982,0.405504,2826.3,2824.4,0.4681]
[1763660916178,0.09465183,2824.4,2824.0,0.185]
[1763660916671,0.09465183,2824.1,2824.0,0.185]
[1763660917071,0.09465183,2824.1,2824.0,0.590504]
[1763660917278,0.09465183,2824.1,2824.0,0.185]
[1763660917653,0.09465183,2824.1,2823.6,6.68272973]
[1763660917851,0.1467,2824.7,2823.7,1.13637297]
[1763660918053,0.09465183,2823.8,2823.7,1.13637297]
[1763660918372,0.09465183,2823.9,2823.8,0.1935]
[1763660918669,0.09465183,2824.0,2823.8,0.1935]
[1763660918872,0.1467,2824.7,2823.8,0.1935]
[1763660919063,0.09465183,2824.0,2823.8,0.67340054]
[1763660919263,0.405504,2825.8,2823.9,0.870204]
[1763660919264,0.09465183,2824.3,2823.9,0.870204]
[1763660919461,0.09465183,2824.3,2824.0,0.001]
[1763660919674,0.09465183,2824.2,2824.0,0.001]
[1763660920374,0.09465183,2824.1,2824.0,0.001]
[1763660922352,0.44405183,2824.1,2824.0,0.001]
[1763660922546,0.09465183,2824.1,2824.0,0.001]
[1763660925493,0.1467,2825.1,2824.0,0.4657]
[1763660925648,0.09465183,2824.3,2824.1,0.1935]
[1763660925848,0.09465183,2824.1,2824.0,0.001]
[1763660927174,0.44405183,2824.1,2824.0,0.001]
[1763660927488,0.09465183,2824.1,2824.0,0.001]
[1763660929862,0.1467,2825.1,2824.0,0.4657]
[1763660930075,0.1467,2825.1,2824.1,0.1935]
[1763660930076,0.09465183,2824.3,2824.1,0.1935]
[1763660930987,0.1467,2825.1,2824.1,0.1935]
[1763660931287,0.09465183,2824.2,2824.1,0.1935]
[1763660931652,0.90699264,2825.7,2824.2,0.405504]
[1763660931653,0.91362762,2825.7,2824.2,0.405504]
[1763660931853,0.59985514,2825.6,2824.2,0.405504]
[1763660932051,0.3494,2825.6,2824.3,0.405504]
[1763660932277,0.09465183,2824.6,2824.2,0.405504]
[1763660932477,0.09465183,2824.7,2824.5,0.405504]
[1763660932680,0.09465183,2825.1,2824.5,0.405504]
[1763660932990,0.09465183,2825.1,2824.1,0.1935]
[1763660932991,0.3494,2825.5,2824.1,0.1935]
[1763660933465,0.09465183,2824.2,2824.1,0.1935]
[1763660933668,0.09465183,2824.7,2824.2,0.405504]
[1763660933851,0.3494,2825.5,2824.1,0.6582]
[1763660933852,0.09465183,2824.2,2824.1,0.6582]
[1763660934051,4.85138092,2825.8,2824.0,0.001]
[1763660934052,0.09465183,2824.1,2824.0,0.001]
[1763660935972,0.09465183,2824.1,2824.0,0.4657]
[1763660936972,0.3494,2825.3,2824.0,0.4657]
[1763660936973,0.09465183,2824.5,2824.0,0.4657]
[1763660937168,0.1467,2825.0,2824.0,0.4657]
[1763660937479,0.09465183,2824.3,2824.0,1.22443224]
[1763660937686,0.09465183,2824.5,2824.1,0.405504]
[1763660938056,0.09465183,2824.3,2824.0,0.75973224]
[1763660938264,0.09465183,2824.2,2824.0,0.001]
[1763660938591,0.09465183,2824.5,2824.0,0.4657]
[1763660938796,0.1467,2824.9,2824.0,0.4657]
[1763660938983,0.09465183,2824.2,2824.0,0.4657]
[1763660939359,0.1467,2825.1,2824.0,0.4657]
[1763660939554,0.09465183,2824.4,2824.0,0.4657]
[1763660940098,0.1467,2825.1,2824.1,0.405504]
[1763660940302,0.09465183,2824.7,2824.1,0.405504]
[1763660940596,0.09465183,2824.7,2824.2,0.4647]
[1763660940894,0.90699264,2826.0,2824.3,1.31249664]
[1763660940895,0.09465183,2825.0,2824.3,1.31249664]
[1763660941056,2.24991639,2826.2,2824.3,1.31249664]
[1763660941057,0.09465183,2824.5,2824.3,1.31249664]
[1763660941468,0.09465183,2824.7,2824.4,0.4647]
[1763660941764,0.09465183,2824.6,2824.0,0.406504]
[1763660941979,0.3494,2825.4,2824.0,0.001]
[1763660941980,0.09465183,2824.4,2824.0,0.001]
[1763660942167,8.04946859,2825.9,2824.2,7.13584097]
[1763660942168,0.09465183,2825.2,2824.2,7.13584097]
[1763660942396,0.91362762,2825.8,2824.3,0.90699264]
[1763660942397,0.3494,2825.8,2824.3,0.90699264]
[1763660942599,0.91362762,2825.9,2824.2,0.4647]
[1763660942600,0.09465183,2824.6,2824.2,0.4647]
[1763660942774,0.1467,2824.3,2824.0,0.001]
[1763660943109,0.09465183,2824.1,2824.0,0.001]
[1763660943465,0.44405183,2824.1,2824.0,0.001]
[1763660944311,1.35767945,2824.1,2824.0,0.001]
[1763660944485,1.35767945,2824.1,2823.4,0.001]
[1763660944486,0.09465183,2823.5,2823.4,0.001]
[1763660944931,0.93666258,2823.8,2823.4,0.001]
[1763660945085,0.27459032,2824.1,2823.4,0.001]
[1763660945287,0.59616455,2824.0,2823.4,0.001]
[1763660945492,0.09465183,2823.5,2823.4,0.001]
[1763660945729,0.09465183,2823.9,2823.4,0.001]
[1763660946027,0.3494,2824.2,2823.4,0.001]
[1763660946434,0.09465183,2823.5,2823.4,0.001]
[1763660946735,0.1467,2824.3,2823.4,0.001]
[1763660946908,0.09465183,2823.5,2823.4,0.001]
[1763660947231,0.93666258,2824.5,2823.4,0.001]
[1763660947232,0.93666258,2824.8,2824.2,0.1935]
[1763660947485,2.48427543,2825.5,2824.2,0.1935]
[1763660947486,0.1467,2824.9,2824.2,0.1935]
[1763660947636,0.09465183,2824.3,2824.2,0.1935]
[1763660947936,0.09465183,2824.7,2824.2,0.1935]
[1763660948094,0.1467,2824.9,2823.8,0.1935]
[1763660948295,0.09465183,2823.9,2823.8,0.1935]
[1763660948496,0.09465183,2823.7,2823.4,0.4612]
[1763660948716,0.09465183,2823.5,2823.4,0.001]
[1763660949344,0.09465183,2823.5,2823.4,0.4612]
[1763660949698,0.3494,2824.5,2823.4,0.4612]
[1763660950104,0.09465183,2823.6,2823.4,0.4612]
[1763660950437,0.09465183,2823.9,2823.5,0.405504]
[1763660950799,0.09465183,2823.9,2823.4,0.001]
[1763660950800,0.3494,2823.9,2823.4,0.001]
[1763660951002,0.3494,2823.9,2822.1,0.1881]
[1763660951003,0.405504,2823.8,2822.1,0.001]
[1763660951275,0.405504,2823.2,2822.1,0.001]
[1763660951444,0.09465183,2822.2,2822.1,0.001]
[1763660952929,0.1014,2822.8,2822.1,0.1881]
[1763660953152,0.09465183,2822.2,2822.1,0.1881]
[1763660953353,0.09465183,2822.2,2822.1,0.001]
[1763660953540,0.09465183,2823.0,2822.2,0.405504]
[1763660953745,0.09465183,2823.0,2822.4,0.405504]
[1763660954270,0.09465183,2823.6,2822.6,0.405504]
[1763660954473,0.09465183,2823.6,2823.0,1.31249664]
[1763660954657,0.3494,2824.7,2823.5,0.1871]
[1763660954828,0.74752021,2824.8,2823.5,0.6473]
[1763660955034,0.1467,2824.9,2822.7,0.17726966]
[1763660955035,0.09465183,2823.9,2823.1,0.1871]
[1763660955256,0.3494,2824.7,2823.1,0.1871]
[1763660955257,0.09465183,2823.4,2823.1,0.1871]
[1763660955453,2.03358279,2824.7,2823.1,0.1871]
[1763660955658,0.09465183,2823.2,2822.8,0.4602]
[1763660955858,0.09465183,2823.1,2822.4,1.36719264]
[1763660956163,0.09465183,2823.0,2822.5,0.865704]
[1763660956583,0.09465183,2823.0,2822.7,0.405504]
[1763660956777,0.09465183,2823.2,2822.7,0.405504]
[1763660956973,0.09465183,2823.2,2822.8,0.4602]
[1763660957171,0.09465183,2823.5,2823.1,0.1871]
[1763660957483,0.09465183,2823.2,2823.1,0.1871]
[1763660957847,0.09465183,2822.9,2822.8,0.4602]
[1763660958562,0.1014,2824.0,2821.1,3.5446449]
[1763660958563,0.09465183,2822.5,2822.2,0.4602]
[1763660958773,0.09465183,2822.2,2822.1,0.001]
[1763660961363,0.44405183,2822.2,2822.1,0.001]
[1763660961609,0.09465183,2822.2,2822.1,0.001]
[1763660962374,0.1014,2824.0,2822.1,0.6483]
[1763660962561,0.3300946,2824.0,2822.5,1.31249664]
[1763660962766,0.3300946,2824.0,2822.7,0.405504]
[1763660962767,0.09465183,2823.9,2822.7,0.405504]
[1763660963001,0.1014,2824.0,2822.7,0.405504]
[1763660963203,0.09465183,2823.0,2822.7,0.405504]
[1763660963403,0.09465183,2823.2,2822.6,0.405504]
[1763660963603,0.09465183,2823.2,2822.6,0.865704]
[1763660963768,0.09465183,2823.2,2823.1,0.1871]
[1763660964112,0.09465183,2823.2,2823.1,0.6473]
[1763660964290,0.09465183,2823.2,2822.6,0.405504]
[1763660964489,0.09465183,2822.8,2822.6,0.405504]
[1763660964697,0.3494,2823.9,2822.5,0.4602]
[1763660964867,0.3494,2823.9,2822.0,1.36819264]
[1763660965068,0.09465183,2822.5,2822.1,0.6483]
[1763660965604,0.3494,2823.6,2822.2,0.4602]
[1763660965808,5.29262046,2824.0,2822.1,0.1881]
[1763660965809,0.09465183,2822.2,2822.1,0.001]
[1763660967923,0.3494,2823.4,2822.1,0.4612]
[1763660968120,0.09465183,2822.3,2822.1,0.4612]
[1763660968420,0.3494,2823.4,2822.1,0.4612]
[1763660968594,0.09465183,2822.2,2822.1,0.001]
[1763660968791,0.3494,2823.4,2822.1,0.4612]
[1763660969021,0.09465183,2822.7,2822.2,0.405504]
[1763660969328,0.09465183,2822.9,2822.4,0.405504]
[1763660969639,0.3494,2824.7,2822.8,0.405504]
[1763660969787,0.09465183,2823.6,2823.2,1.31249664]
[1763660970126,1.6727943,2825.1,2822.8,0.405504]
[1763660970127,0.3494,2824.4,2823.3,0.6741]
[1763660970283,0.09465183,2823.4,2823.3,0.1984]
[1763660970485,0.09665183,2823.4,2823.3,0.1984]
[1763660970722,0.002,2823.4,2822.9,0.6741]
[1763660970922,0.09465183,2823.2,2823.0,0.4757]
[1763660971123,0.002,2823.4,2822.6,0.1984]
[1763660971327,0.002,2823.4,2822.1,0.4767]
[1763660971328,0.09465183,2822.5,2822.1,0.4767]
[1763660971631,0.09465183,2822.2,2822.1,0.4767]
[1763660971832,0.09465183,2822.2,2822.1,0.001]
[1763660972035,0.44405183,2822.2,2822.1,0.001]
[1763660972182,0.09465183,2822.2,2822.1,0.001]
[1763660972385,0.44405183,2822.2,2822.1,0.001]
[1763660972636,0.84955583,2822.2,2822.0,0.001]
[1763660972830,0.3484,2822.1,2821.5,0.001]
[1763660973129,0.09465183,2820.1,2818.4,1.90525336]
[1763660973332,1.31249664,2820.6,2818.3,0.4757]
[1763660973495,0.09465183,2819.1,2817.9,0.1984]
[1763660973818,0.09465183,2820.0,2818.9,0.4757]
[1763660974023,0.09465183,2819.1,2818.4,0.4757]
[1763660974385,1.05169264,2820.5,2818.4,1.38269264]
[1763660974386,0.09465183,2819.3,2818.4,1.38269264]
[1763660974621,0.1447,2820.5,2818.9,0.90699264]
[1763660974622,0.09465183,2819.6,2818.9,0.90699264]
[1763660974830,0.09465183,2819.8,2819.0,0.4757]
[1763660975049,0.09465183,2819.2,2819.0,0.4757]
[1763660975182,0.1447,2820.5,2819.0,0.4757]
[1763660975385,0.09465183,2820.0,2819.3,1.31249664]
[1763660975588,0.09465183,2819.7,2819.4,0.6741]
[1763660975827,0.3474,2821.1,2817.9,0.1984]
[1763660975828,0.3474,2819.6,2817.9,0.1984]
[1763660976032,0.3474,2819.6,2817.6,0.4757]
[1763660976033,0.09465183,2818.3,2817.6,0.4757]
[1763660976231,0.73941786,2820.0,2819.5,0.1984]
[1763660976386,2.48427543,2820.9,2819.5,0.1984]
[1763660976387,0.3474,2821.1,2819.5,0.1984]
[1763660976726,1.25439264,2821.4,2819.5,0.1984]
[1763660976883,0.83740535,2821.3,2819.7,0.405504]
[1763660977087,0.3474,2821.3,2819.7,0.405504]
[1763660977409,0.1014,2821.5,2819.9,0.405504]
[1763660977585,0.1014,2821.5,2819.8,0.405504]
[1763660977586,0.3474,2821.4,2819.8,0.405504]
[1763660977783,0.3474,2821.4,2819.9,0.4757]
[1763660978206,0.1014,2821.5,2820.0,0.405504]
[1763660978518,0.1014,2821.5,2820.0,1.31249664]
[1763660978721,0.1014,2821.5,2820.2,0.405504]
[1763660978926,0.3474,2821.9,2820.2,0.405504]
[1763660979101,0.1014,2822.4,2820.9,7.56409432]
[1763660979283,0.1014,2822.5,2821.0,1.97499664]
[1763660979487,0.3474,2823.0,2821.2,0.405504]
[1763660979830,0.74029334,2823.4,2822.0,0.405504]
[1763660979831,0.002,2823.4,2822.0,0.405504]
[1763660980035,0.002,2823.4,2822.5,0.405504]
[1763660980188,0.002,2823.4,2822.5,1.31249664]
[1763660980387,0.002,2823.4,2822.7,0.405504]
[1763660980588,0.002,2823.4,2822.7,0.887604]
[1763660980986,0.002,2823.4,2822.7,0.4821]
[1763660982000,0.002,2823.4,2822.7,1.38909264]
[1763660982731,0.002,2823.4,2822.8,0.4821]
[1763660982888,0.002,2823.4,2822.9,0.405504]
[1763660983088,0.002,2823.7,2823.2,1.31249664]
[1763660983302,0.002,2823.7,2823.6,7.96959832]
[1763660983503,0.002,2823.7,2823.6,8.45169832]
[1763660984024,0.002,2823.7,2823.6,0.4821]
[1763660984322,0.002,2823.7,2823.1,8.04619432]
[1763660984986,0.002,2823.7,2823.2,0.405504]
[1763660985206,0.002,2823.7,2823.2,1.79459664]
[1763660985445,0.002,2823.7,2823.6,8.87659096]
[1763660985851,0.002,2823.7,2823.6,9.35869096]
[1763660987432,0.002,2824.0,2823.6,9.35869096]
[1763660987433,0.002,2824.0,2823.7,1.31249664]
[1763660987638,0.002,2824.0,2823.9,0.585904]
[1763660987837,0.002,2824.0,2823.1,7.74449432]
[1763660988236,0.002,2824.0,2822.9,0.4821]
[1763660988439,0.002,2824.0,2823.2,0.405504]
[1763660988638,0.002,2824.0,2823.3,0.4821]
[1763660989413,0.002,2824.0,2823.4,0.405504]
[1763660989644,0.002,2824.0,2823.9,0.1804]
[1763660989818,0.002,2824.0,2823.3,0.585904]
[1763660990018,0.002,2824.0,2823.3,1.068004]
[1763660990855,0.002,2824.0,2823.4,0.4821]
[1763660991652,0.002,2824.0,2823.3,0.585904]
[1763660992014,0.002,2824.0,2823.3,1.068004]
[1763660992217,0.002,2824.0,2823.3,1.26550366]
[1763660992418,0.002,2824.0,2823.4,0.4821]
[1763660992687,0.002,2824.0,2823.8,0.405504]
[1763660992874,0.002,2824.0,2823.9,0.887604]
[1763660993180,0.002,2824.3,2824.0,0.405504]
[1763660993381,0.002,2824.3,2824.2,0.585904]
[1763660993585,0.002,2824.3,2824.2,1.49289664]
[1763660993890,0.002,2824.3,2824.1,0.405504]
[1763660994183,0.002,2824.3,2823.8,0.405504]
[1763660994572,0.002,2824.3,2824.2,0.585904]
[1763660995078,0.002,2824.3,2824.2,1.068004]
[1763660995566,0.002,2824.3,2824.2,0.585904]
[1763660995771,0.002,2824.3,2824.2,1.068004]
[1763660996288,0.002,2824.3,2823.8,0.405504]
[1763660996483,0.002,2824.3,2823.6,0.4821]
[1763660997053,0.002,2824.3,2823.7,0.405504]
[1763660997981,0.002,2824.3,2823.6,0.4821]
[1763660998485,0.002,2824.3,2823.7,0.405504]
[1763661000227,0.55565143,2824.2,2823.2,0.125]
[1763661000426,0.55565143,2824.2,2821.5,0.1804]
[1763661000427,0.1447,2823.8,2822.4,0.4821]
[1763661000581,0.55565143,2824.2,2822.4,0.4821]
[1763661000783,0.55565143,2824.2,2823.4,0.90699264]
[1763661001126,0.55565143,2824.2,2822.4,0.4821]
[1763661001127,0.002,2824.3,2822.8,7.56409432]
[1763661001286,0.002,2824.3,2822.4,0.4821]
[1763661001287,0.3514,2824.1,2822.4,0.4821]
[1763661001913,0.002,2824.3,2822.7,0.90699264]
[1763661002137,0.002,2824.3,2824.2,0.1804]
[1763661002320,0.002,2824.3,2824.2,1.97499664]
[1763661002641,0.3514,2826.5,2824.3,0.405504]
[1763661002844,0.3514,2825.8,2824.2,0.1804]
[1763661002999,0.3514,2825.8,2823.6,7.56409432]
[1763661003000,0.3514,2825.8,2823.8,0.1804]
[1763661003345,0.405504,2825.7,2823.8,0.90699264]
[1763661003646,0.3514,2825.8,2824.0,0.405504]
[1763661003798,0.3514,2825.7,2824.0,0.405504]
[1763661004031,0.3514,2826.2,2824.8,0.90699264]
[1763661004445,0.1014,2826.3,2825.3,0.90699264]
[1763661004860,0.55550122,2826.4,2825.6,0.90699264]
[1763661005058,0.55550122,2826.4,2825.5,6.22484006]
[1763661005059,0.55550122,2826.4,2825.4,0.6625]
[1763661005268,0.002,2825.7,2825.6,0.90699264]
[1763661005467,0.002,2825.7,2825.4,0.1804]
[1763661005627,0.002,2825.7,2825.1,1.068004]
[1763661005824,0.002,2825.7,2825.2,0.4821]
[1763661006022,0.002,2825.7,2825.2,0.887604]
[1763661006225,0.55550122,2826.4,2825.7,0.405504]
[1763661006424,0.55550122,2826.4,2825.1,1.03199264]
[1763661006425,0.55550122,2826.4,2825.4,0.1804]
[1763661006665,0.002,2826.3,2825.4,0.1804]
[1763661006834,0.1,2825.6,2825.5,0.405504]
[1763661007035,0.002,2826.3,2825.7,0.405504]
[1763661007235,0.002,2826.3,2825.1,1.31249664]
[1763661007435,0.002,2826.3,2825.1,0.90699264]
[1763661007751,0.1,2825.5,2825.1,1.38909264]
[1763661008134,0.1,2825.5,2825.2,0.4821]
[1763661008334,0.1,2825.3,2825.2,0.4821]
[1763661008770,0.1,2825.5,2825.3,0.405504]
[1763661009173,0.1,2825.7,2825.5,0.90699264]
[1763661009465,0.1,2825.6,2825.5,0.90699264]
[1763661010229,0.002,2826.3,2825.5,1.79129664]
[1763661010443,0.002,2826.3,2826.1,0.405504]
[1763661010663,0.002,2826.8,2826.3,0.405504]
[1763661010664,0.55530414,2826.7,2826.3,0.405504]
[1763661010869,0.55530414,2826.7,2826.6,7.5373367]
[1763661011049,0.102,2826.8,2826.7,1.31249664]
[1763661011252,0.002,2826.8,2826.3,6.22484006]
[1763661011498,0.002,2826.8,2826.4,0.90699264]
[1763661011799,0.002,2826.8,2825.5,0.1883]
[1763661011955,0.1,2826.0,2825.5,0.1883]
[1763661012159,0.002,2826.8,2825.5,0.1883]
[1763661012583,0.1,2825.6,2825.5,0.1883]
[1763661012973,0.1,2825.4,2824.9,0.6592]
[1763661013176,0.1,2825.7,2825.1,6.22484006]
[1763661013373,0.1,2825.2,2825.1,6.22484006]
[1763661013594,0.1,2825.2,2825.1,7.1318327]
[1763661013860,0.1,2825.2,2825.1,7.6106327]
[1763661014294,0.1,2825.2,2825.1,6.22484006]
[1763661014596,0.1,2825.3,2825.2,0.90699264]
[1763661014801,0.1,2826.2,2824.9,0.1804]
[1763661014802,0.1,2826.2,2824.9,1.08739264]
[1763661015008,0.1,2826.2,2823.2,1.90525336]
[1763661015009,0.1,2824.7,2824.0,0.4788]
[1763661015239,0.1,2824.7,2823.6,0.001]
[1763661015240,0.405504,2826.0,2824.3,6.22484006]
[1763661015373,0.1,2824.6,2824.3,6.22484006]
[1763661015560,0.1,2824.6,2824.4,0.90699264]
[1763661015765,0.4534,2825.4,2824.0,0.90699264]
[1763661016086,0.1,2824.4,2824.1,0.6592]
[1763661016287,0.1,2824.9,2824.2,0.4788]
[1763661016484,0.92248078,2825.9,2823.7,0.6671]
[1763661016797,0.1,2823.8,2823.7,0.1883]
[1763661017002,1.32798478,2825.3,2823.6,0.001]
[1763661017181,0.1,2823.7,2823.6,0.001]
[1763661017355,0.1,2823.8,2823.6,0.001]
[1763661017695,0.1,2824.5,2823.6,0.001]
[1763661017880,0.1,2824.1,2823.6,0.001]
[1763661018207,0.1,2824.1,2821.6,0.6671]
[1763661018208,0.1034,2822.9,2821.6,0.6671]
[1763661018375,0.1,2822.1,2821.7,2.18119141]
[1763661018560,0.1,2822.0,2821.6,6.41314006]
[1763661018761,0.1034,2822.9,2821.2,0.4788]
[1763661018762,0.1,2821.8,2821.2,0.4788]
[1763661019102,0.1,2821.9,2821.5,0.90699264]
[1763661019254,0.1,2821.8,2821.6,0.71318327]
[1763661019462,0.1,2821.8,2821.6,1.19198327]
[1763661019660,0.1,2821.8,2821.7,0.4788]
[1763661019901,0.1,2822.1,2821.8,0.405504]
[1763661020064,0.1034,2822.9,2821.8,0.405504]
[1763661020065,0.1,2821.9,2821.8,0.405504]
[1763661020270,0.1,2821.9,2821.7,0.4788]
[1763661020271,0.1,2821.9,2821.7,0.405504]
[1763661020468,0.1,2822.1,2821.8,0.4788]
[1763661020769,0.1,2821.6,2821.5,0.90699264]
[1763661021157,0.1,2821.9,2821.5,1.38579264]
[1763661021364,0.1,2822.0,2821.5,0.90699264]
[1763661021562,0.1,2821.7,2821.6,0.4788]
[1763661021894,0.405504,2822.7,2820.5,0.4788]
[1763661022099,0.405504,2822.7,2819.9,0.1883]
[1763661022103,23.06099264,2822.6,2819.9,0.1883]
[1763661022260,0.1124,2820.5,2819.2,0.4788]
[1763661022461,0.405504,2821.1,2819.4,0.4788]
[1763661022659,0.405504,2821.1,2819.4,6.70364006]
[1763661022660,0.405504,2820.9,2819.4,6.70364006]
[1763661022878,0.405504,2820.9,2819.0,6.41314006]
[1763661023189,3.65703205,2821.2,2819.0,6.89194006]
[1763661023190,0.405504,2820.7,2819.0,6.89194006]
[1763661023405,0.856904,2821.1,2819.6,0.90699264]
[1763661023724,0.856904,2821.1,2819.1,0.4788]
[1763661023876,0.1,2819.8,2819.1,0.4788]
[1763661024078,0.4514,2821.0,2819.2,0.68919401]
[1763661024079,0.1,2819.5,2819.2,0.68919401]
[1763661024278,0.405504,2820.9,2819.2,0.68919401]
[1763661024523,0.1,2819.8,2819.4,0.90699264]
[1763661024833,0.1,2820.2,2819.4,0.90699264]
[1763661025003,0.1,2820.6,2820.3,0.90699264]
[1763661025324,0.1,2821.4,2820.4,0.405504]
[1763661025623,0.1,2821.4,2820.4,0.4788]
[1763661025778,0.1,2820.7,2820.4,1.38579264]
[1763661026099,0.1,2820.9,2820.4,1.38579264]
[1763661026306,0.4514,2821.9,2820.4,1.38579264]
[1763661026613,0.1,2820.6,2820.4,1.66805591]
[1763661026814,0.4514,2821.9,2820.5,0.4788]
[1763661027020,0.1,2821.1,2820.9,0.90699264]
[1763661027177,0.1,2821.0,2820.9,0.90699264]
[1763661027384,0.4514,2822.3,2820.1,0.1883]
[1763661027385,0.405504,2821.6,2820.1,0.1883]
[1763661027582,0.1,2820.2,2820.1,0.1883]
[1763661027782,0.1,2820.2,2819.3,6.35084006]
[1763661027984,0.1,2819.9,2819.3,0.4788]
[1763661028185,0.1,2819.8,2819.3,0.90699264]
[1763661028506,0.1,2819.8,2819.4,0.4788]
[1763661028916,0.1,2819.8,2819.4,1.23986327]
[1763661029080,0.1233,2819.9,2818.8,0.4788]
[1763661029281,0.1,2819.2,2818.8,0.4788]
[1763661029615,0.1,2818.9,2818.5,6.22484006]
[1763661029821,0.1233,2819.9,2818.6,1.38579264]
[1763661029993,0.1,2819.3,2818.7,0.76106327]
[1763661030345,0.1233,2819.9,2818.7,0.4892]
[1763661030346,0.1,2819.2,2818.7,0.4892]
[1763661030496,0.1,2819.3,2818.8,0.4892]
[1763661030901,0.5564132,2820.0,2819.2,0.1884]
[1763661030902,0.1,2819.8,2819.2,0.1884]
[1763661031140,0.69483402,2820.8,2819.8,0.405504]
[1763661031347,0.69483402,2820.8,2820.7,7.1318327]
[1763661031548,0.69483402,2820.8,2820.7,0.90699264]
[1763661031730,0.4514,2821.8,2820.1,0.1884]
[1763661031948,0.1,2820.5,2820.1,0.87864401]
[1763661032156,0.1124,2822.4,2820.6,0.405504]
[1763661032318,0.5548,2822.9,2821.7,0.90699264]
[1763661032520,0.1,2822.1,2821.7,0.90699264]
[1763661032740,0.1,2822.2,2821.8,0.4892]
[1763661033038,0.5548,2822.9,2821.8,0.4892]
[1763661033039,0.1,2822.1,2821.8,0.4892]
[1763661033247,0.1034,2823.2,2821.8,0.4892]
[1763661033403,0.1,2822.3,2821.8,0.4892]
[1763661033604,0.5747,2823.6,2821.8,0.4892]
[1763661033605,0.1,2823.1,2822.2,0.90699264]
[1763661033803,0.4514,2823.5,2822.2,0.90699264]
[1763661034062,0.1,2822.8,2822.2,0.90699264]
[1763661034344,0.4514,2823.5,2821.8,0.4892]
[1763661034345,0.1,2822.3,2821.8,0.4892]
[1763661034550,0.4514,2823.5,2821.8,0.4892]
[1763661034705,0.4514,2823.4,2821.7,1.39619264]
[1763661034902,0.1,2822.2,2821.7,1.39619264]
[1763661035133,0.1,2822.2,2821.7,2.17713591]
[1763661035346,0.1,2821.9,2821.7,1.68793591]